Cogmind - Beta 15 *** ADVENTURER MODE // 2025.06.25 @ 21:29:02 Player: Electroid Result: Self-destructed Performance ------------- Evolutions (5) 2500 Regions Visited (5) 1000 Robots Destroyed (87) 435 Value Destroyed (2426) 2426 Prototype IDs (1) 20 Alien Tech Used (0) 0 Bonus (71) 71 TOTAL SCORE: 6452 Bonus ------- High Alert Combat Kills 91 Friendly Fire -20 Cogmind --------- Core Integrity 303/1000 Matter 219/300 Energy 66/100 System Corruption 9% Temperature Cool (48) Movement Core (350) Ox6 Location -5/Extension Parts ------- > --- POWER (2) -------- (None) > --- PROPULSION (7) --- (None) > --- UTILITY (4) ------ Improved Coolant Injector Large Storage Unit Improved Target Analyzer Core Analyzer > --- WEAPON (4) ------- (None) > --- INVENTORY (15) --- Improved Coolant Injector Peak State ------------ > --- POWER ------------ Neutrino Core Neutrino Core > --- PROPULSION ------- Gravmag Array Gravmag Array Gravmag Array Combat Gravmag System > --- UTILITY ---------- Improved Cooling System Large Storage Unit Targeting Computer Phase Shifter > --- WEAPON ----------- Heavy Ion Cannon Heavy Ion Cannon Cooled Plasma Cannon Heavy Phase Cannon > --- INVENTORY -------- Core Analyzer Hardened Medium Armor Plating Scrap Shield Improved EM Pulse Cannon Coil Gun Bore Cannon Grenade Launcher Grenade Launcher Heavy Rocket Launcher Heavy Rocket Launcher Greatsword [Rating: 83] Favorites ----------- Power Neutrino Core Engine Ion Engine Power Core Neutrino Core Propulsion Myomer Leg Leg Myomer Leg Hover Unit Gravmag Array Flight Unit VTOL Module Utility Large Storage Unit Device Improved Heat Sink Storage Large Storage Unit Processor Targeting Computer Protection Hardened Medium Armor Plating Weapon Beamcaster Energy Gun Beamcaster Energy Cannon Heavy Ion Cannon Ballistic Gun Coil Gun Ballistic Cannon Bore Cannon Launcher Heavy Rocket Launcher Special Weapon Flamer Slashing Weapon Greatsword Build | -11 -10 -10 -7 -5 -5 ------- Run | Yrd Mat Sub Rec Fac Ext Slots Evolved 10 | . . . . 10 . Power 1 | . . . . 1 . Propulsion 5 | . . . . 5 . Utility 2 | . . . . 2 . Weapon 2 | . . . . 2 . Parts Attached 65 | 6 7 8 4 37 3 Power 10 | 1 1 1 . 7 . Engine 4 | 1 . . . 3 . Core 6 | . 1 1 . 4 . Reactor . | . . . . . . Propulsion 20 | 2 2 2 . 13 1 Treads . | . . . . . . Leg 8 | 2 . 2 . 4 . Wheel . | . . . . . . Hover 8 | . 2 . . 5 1 Flight 4 | . . . . 4 . Utility 15 | 1 2 . 2 8 2 Device 8 | . 1 . 2 5 . Storage 2 | 1 1 . . . . Processor 3 | . . . . 1 2 Hackware . | . . . . . . Protection 2 | . . . . 2 . Artifact . | . . . . . . Weapon 20 | 2 2 5 2 9 . Energy Gun 5 | . 2 3 . . . Energy Cannon 5 | . . . . 5 . Ballistic Gun 3 | 2 . . . 1 . Ballistic Cannon 1 | . . . 1 . . Launcher 4 | . . 2 . 2 . Special Weapon 1 | . . . 1 . . Impact Weapon . | . . . . . . Slashing Weapon 1 | . . . . 1 . Piercing Weapon . | . . . . . . Special Melee Weapon . | . . . . . . Unidentified Prototypes 1 | . . . . 1 . Parts Lost 36 | . . . 4 22 10 Power 6 | . . . . 5 1 Propulsion 9 | . . . 1 4 4 Utility 6 | . . . 1 4 1 Weapon 15 | . . . 2 9 4 Highest Loss Streak 12 | . . . 3 12 10 To Critical Strikes . | . . . . . . Average Backups 11 | 1 9 13 12 9 5 Power . | . 1 . . . . Propulsion 3 | . 4 4 4 1 1 Utility 2 | . . 3 3 2 3 Weapon 5 | . 3 6 5 5 1 Tool/Special . | . . . . . . Unused Backups 4 | . . 1 2 . 1 Power 1 | . . 1 . . . Propulsion . | . . . . . . Utility 2 | . . . 1 . 1 Weapon 1 | . . . 1 . . Tool/Special . | . . . . . . Average Slot Usage (%) 84 | . 89 100 84 65 43 Engine 1 | . 9 . . . . Core 10 | . 4 14 14 7 3 Leg 18 | . 28 28 14 3 13 Hover 3 | . . . . 13 . Device 10 | . 4 14 13 8 9 Storage 11 | . 14 14 14 4 5 Energy Gun 15 | . 19 26 18 . . Energy Cannon 3 | . . . . 11 4 Ballistic Gun 1 | . 8 . . 1 3 Peak Build Rating 83 | 6 15 33 33 83 41 Average Rating 35 | 3 9 31 29 61 32 On Entrance 20 | . 6 15 33 28 41 Naked Turns . | . . . . . . Heaviest Build 92 | 13 32 45 47 92 39 Greatest Support 74 | 20 20 40 40 74 50 Greatest Overweight (x) 9 | 1 1 2 1 9 2 Average Overweight (x) . | . . 1 1 . . Largest Inventory Capacity 15 | 8 15 15 15 15 15 Average Capacity 14 | 7 14 15 15 14 15 Most Carried 15 | 5 14 15 15 15 6 Average Carried 12 | 1 9 14 14 10 5 Final Capacity 15 | 8 15 15 15 15 15 Final Carried 15 | 1 14 15 14 6 1 Class Distribution -------------------- 55% | Scavenger-Mutant 30% | Mutant 13% | Gunner Dominant Class ---------------- Mutant | -10/Materials Scavenger-Mutant | -10/Subcaves Scavenger-Mutant | -7/Recycling Gunner | -5/Factory Mutant | -5/Extension Resources | -11 -10 -10 -7 -5 -5 ----------- Run | Yrd Mat Sub Rec Fac Ext Matter Collected 1236 | 268 90 100 3 771 4 Remotely . | . . . . . . Salvage Created 3431 | 90 217 403 118 2316 287 Parts 198 | 3 12 34 3 134 12 Haulers Intercepted 1 | . 1 . . . . Recyclers Shooed 9 | 1 . . . 7 1 Parts Field Recycled . | . . . . . . Retrieved Matter . | . . . . . . Parts Self-Destructed 19 | . . 19 . . . Prevented . | . . . . . . Kills | -11 -10 -10 -7 -5 -5 ------- Run | Yrd Mat Sub Rec Fac Ext Combat Hostiles Destroyed 45 | . 4 16 2 23 . Melee 2 | . . . . 2 . Guns 16 | . 4 10 1 1 . Cannons 15 | . . . 1 14 . AOE 11 | . . 6 . 5 . Classes Destroyed 13 | 1 2 4 . 6 . Worker 12 | . . . . 9 3 Builder 14 | . . . . 14 . Hauler 1 | . 1 . . . . Recycler 10 | 1 . . . 7 2 Operator 1 | . . . . 1 . Turret 1 | . . 1 . . . Watcher 3 | . . . . 3 . Swarmer 11 | . . 7 . 4 . Grunt 11 | . 4 1 . 6 . Sentry 3 | . . 1 2 . . Hunter 5 | . . . . 5 . Programmer 8 | . . . . 8 . Subdweller 7 | . . 7 . . . Best Kill Streak 19 | 1 2 7 1 19 5 Combat Bots Only 7 | . 2 7 1 6 . Max Kills in Single Turn 6 | 1 1 6 1 3 2 Gunslinging . | . . . . . . Exploded 6 | . . 6 . 1 . Melee 1 | . . . . 1 . Uniques/NPCs Destroyed . | . . . . . . Combat | -11 -10 -10 -7 -5 -5 -------- Run | Yrd Mat Sub Rec Fac Ext Hostile Shots Fired 491 | . 10 67 66 297 51 Missed 140 | . 2 22 20 81 15 Hits 351 | . 8 45 46 216 36 Projectile 351 | . 8 45 46 216 36 Critical Strikes 11 | . . 1 . 9 1 Part Disruptions 1 | . . . . 1 . Damage Taken 4798 | . 82 478 262 3193 783 Core 792 | . . 54 41 410 287 Absorbed by Shields . | . . . . . . Ignored by Resistances 1364 | . 25 133 94 898 214 Core Remaining (%) 81 | 100 . . 62 . . Volleys Fired 154 | 2 14 27 11 92 8 Largest 4 | 2 2 2 2 4 2 Hottest 255 | 40 130 150 150 255 99 Shots Fired 290 | 4 28 52 16 181 9 Gun 99 | 4 28 50 10 6 1 Cannon 167 | . . . 6 159 2 Launcher 18 | . . 2 . 10 6 Special 6 | . . . . 6 . Kinetic 24 | 4 . . 6 13 1 Thermal 228 | . 28 50 10 140 . Explosive 18 | . . 2 . 10 6 Electromagnetic 20 | . . . . 18 2 Robot Hit Streak 22 | 3 15 7 8 22 6 Robot Miss Streak 4 | . 4 3 1 3 1 Penetration Max 1 | . . . . 1 . Secondary Targets 3 | . 1 2 . . . Max Gunslinging Chain 1 | . 1 1 . . . Shots Hit Robots 205 | 3 17 25 13 139 8 Core Hits 135 | 2 7 26 5 81 14 Critical Kills 3 | . . . 1 2 . Critical Parts Destroyed 3 | . . . 1 2 . Critical Strikes 15 | . 2 4 4 5 . Burn 9 | . 2 4 2 1 . Destroy 6 | . . . 2 4 . Melee Attacks 23 | . . . . 23 . Impact . | . . . . . . Slashing 23 | . . . . 23 . Piercing . | . . . . . . Sneak Attacks 8 | . . . . 8 . Combat Hostiles . | . . . . . . Follow-up Attacks . | . . . . . . Damage Inflicted 8832 | 32 261 1055 248 6635 601 Guns 1078 | 32 261 451 168 141 25 Cannons 3655 | . . . 80 3538 37 Explosions 2742 | . . 604 . 1599 539 Melee 1322 | . . . . 1322 . Ramming . | . . . . . . Kinetic 404 | 32 . . 80 267 25 Thermal 4339 | . 261 451 168 3459 . Explosive 2267 | . . 604 . 1124 539 Electromagnetic 500 | . . . . 463 37 Impact . | . . . . . . Slashing 1322 | . . . . 1322 . Piercing . | . . . . . . Highest Corruption 9 | . . . . 9 9 Average Corruption 5 | . . . . 4 9 Corruption Purged . | . . . . . . Corruption Blocked . | . . . . . . Effects 27 | . . . . 23 4 Message Errors 7 | . . . . 4 3 Matter Fused 4 | . . . . 3 1 Heat Flow Errors 1 | . . . . 1 . Energy Discharges 1 | . . . . 1 . Parts Rejected 1 | . . . . 1 . Data Loss (minor) 6 | . . . . 6 . Data Loss (major) 2 | . . . . 2 . Misfires 3 | . . . . 3 . Weapon Failures 2 | . . . . 2 . Overload Shots . | . . . . . . Overflow Damage 548 | . . . . 525 23 Projectiles 66 | . . . . 66 . Explosions 168 | . . . . 145 23 Melee 314 | . . . . 314 . Knockbacks . | . . . . . . Impact . | . . . . . . Kinetic . | . . . . . . Secondary . | . . . . . . Self-Inflicted Damage 310 | . . . . 310 . Shots 8 | . . . . 8 . Rammed . | . . . . . . Targets Rammed . | . . . . . . Kicked . | . . . . . . Crushed . | . . . . . . Highest Temperature 581 | . 303 27 195 581 156 Average Temperature 178 | . 114 19 91 219 84 Received Heat Transfer 1223 | . 60 105 108 540 410 Effects 22 | . . . . 22 . Shutdowns 6 | . . . . 6 . Energy Bleed 5 | . . . . 5 . Interference 5 | . . . . 5 . Matter Decay 2 | . . . . 2 . Short Circuit 2 | . . . . 2 . Damage (minor) 1 | . . . . 1 . Damage (major) 1 | . . . . 1 . Siege Activations . | . . . . . . Martial Activations . | . . . . . . Shielding Activations . | . . . . . . Robots Disrupted . | . . . . . . Combat Hostiles . | . . . . . . Robots Corrupted 1 | . . . . 1 . Combat Hostiles 1 | . . . . 1 . Parts Fried 1 | . . . . 1 . Impact Corruptions . | . . . . . . Robots Melted . | . . . . . . Combat Hostiles . | . . . . . . Parts Melted 14 | . . 3 2 9 . Heat Transferred 7003 | . 777 1147 444 4635 . Parts Sabotaged . | . . . . . . Parts Stolen . | . . . . . . Parts Stripped . | . . . . . . Power Chain Reactions 1 | . . . . 1 . Alert | -11 -10 -10 -7 -5 -5 ------- Run | Yrd Mat Sub Rec Fac Ext Maximum Alert Level 2 | . . . . 2 . Low Security (%) 80 | 100 100 . 100 58 100 Level 1 7 | . . . . 17 . Level 2 11 | . . . . 24 . Level 3 . | . . . . . . Level 4 . | . . . . . . Level 5 . | . . . . . . High Security . | . . . . . . Max Security . | . . . . . . Peak Influence 542 | 5 50 . 53 542 182 Initial 182 | . . . 53 . 182 Average 99 | . 5 . 6 195 135 Influence Increases 1604 | 5 107 270 43 1146 33 Destroy 0b10 Robot/C 780 | . 80 200 40 460 . Destroy 0b10 Robot/NC 205 | 5 5 . . 170 25 Destroy Leader 138 | . 22 10 . 106 . Successful Hack 4 | . . . . 4 . Disable Machine 108 | . . . . 108 . Destroy Structure 309 | . . . 3 298 8 Lose Combat Pursuer 60 | . . 60 . . . Influence Decreases 1559 | 5 107 140 173 714 420 Entered New Map 327 | . . . 77 . 250 Time Decay 910 | 5 107 140 84 504 70 Lost Part 322 | . . . 12 210 100 Squads Dispatched 9 | . . . . 8 1 Investigation . | . . . . . . Extermination 4 | . . . . 4 . Reinforcement 5 | . . . . 4 1 Assault . | . . . . . . Garrison . | . . . . . . Intercept . | . . . . . . Searches Triggered . | . . . . . . Construction Impeded 3 | . . . . 2 1 Haulers Reinforced 1 | . . . . 1 . Active Scanning Responses . | . . . . . . Cargo Convoy Interrupts . | . . . . . . Stealth | -11 -10 -10 -7 -5 -5 --------- Run | Yrd Mat Sub Rec Fac Ext Distress Signals 1 | . . . . 1 . Communications Jammed 10 | . . . . 10 . Distress Signals 10 | . . . . 10 . Times Spotted 66 | . 6 26 2 28 4 Peak Tracking Total 10 | . 3 10 1 4 4 Tactical Retreats 3 | . . 3 . . . Traps | -11 -10 -10 -7 -5 -5 ------- Run | Yrd Mat Sub Rec Fac Ext Traps Triggered 2 | . . 1 . 1 . Indirectly . | . . . . . . Trap Hack Attempts . | . . . . . . Triggered . | . . . . . . Disarmed . | . . . . . . Reprogrammed . | . . . . . . Reused . | . . . . . . Traps Extracted . | . . . . . . Installed . | . . . . . . Triggered . | . . . . . . Machines | -11 -10 -10 -7 -5 -5 ---------- Run | Yrd Mat Sub Rec Fac Ext Machines Disabled 13 | . . 1 . 12 . Max in Single Turn 6 | . . 1 . 6 . Machines Repaired . | . . . . . . Machines Dismantled . | . . . . . . Machines Sabotaged . | . . . . . . Overloaded Fab Kills . | . . . . . . Hacking | -11 -10 -10 -7 -5 -5 --------- Run | Yrd Mat Sub Rec Fac Ext Machines Accessed 5 | . 1 1 . 3 . Terminals 3 | . 1 . . 2 . Fabricators . | . . . . . . Repair Stations . | . . . . . . Recycling Units 1 | . . . . 1 . Scanalyzers . | . . . . . . Garrison Access . | . . . . . . Total Hacks 13 | . 4 5 . 4 . Successful 11 | . 3 5 . 3 . Failed 2 | . 1 . . 1 . Catastrophic 1 | . 1 . . . . Database Lockouts . | . . . . . . Manual . | . . . . . . Terminals 7 | . 4 . . 3 . Fabricators . | . . . . . . Repair Stations . | . . . . . . Recycling Units 1 | . . . . 1 . Scanalyzers . | . . . . . . Garrison Access . | . . . . . . Terminal Hacks 10 | . 3 5 . 2 . Record 8 | . 3 5 . . . Open DSF 1 | . . . . 1 . Alert Level 1 | . . . . 1 . Fabricator Hacks . | . . . . . . Repair Station Hacks . | . . . . . . Recycling Unit Hacks 1 | . . . . 1 . Retrieve Components 1 | . . . . 1 . Scanalyzer . | . . . . . . Garrison Access Hacks . | . . . . . . Unauthorized Hacks . | . . . . . . Terminals . | . . . . . . Fabricators . | . . . . . . Repair Stations . | . . . . . . Recycling Units . | . . . . . . Scanalyzers . | . . . . . . Garrison Access . | . . . . . . Data Cores Recovered 1 | . . . . 1 . Used 1 | . . . . 1 . Hacking Detections 2 | . . . . 2 . Full Trace Events . | . . . . . . Feedback Events . | . . . . . . Feedback Blocked . | . . . . . . Robot Schematics Acquired . | . . . . . . Robots Built . | . . . . . . Authchips . | . . . . . . Time . | . . . . . . Total Robot Build Rating . | . . . . . . Part Schematics Acquired . | . . . . . . Parts Built . | . . . . . . Authchips . | . . . . . . Time . | . . . . . . Total Part Build Rating . | . . . . . . Parts Repaired . | . . . . . . Time . | . . . . . . Parts Recycled . | . . . . . . Recycled Matter . | . . . . . . Retrieved Matter . | . . . . . . Retrieved Components 1 | . . . . 1 . Parts Scanalyzed . | . . . . . . Part Schematics Acquired . | . . . . . . Parts Damaged . | . . . . . . Bothacking | -11 -10 -10 -7 -5 -5 ------------ Run | Yrd Mat Sub Rec Fac Ext Used RIF Installer . | . . . . . . Robots Hacked . | . . . . . . Non-combat . | . . . . . . Combat . | . . . . . . Robot Hacks Applied . | . . . . . . Relay Couplers Released . | . . . . . . Fabnet Peak Effective % . | . . . . . . Robots Rewired . | . . . . . . Allies Hacked . | . . . . . . Hacks Repelled . | . . . . . . Allies | -11 -10 -10 -7 -5 -5 -------- Run | Yrd Mat Sub Rec Fac Ext Total Allies . | . . . . . . Largest Group . | . . . . . . Highest-Rated Group . | . . . . . . Highest-Rated Ally . | . . . . . . Total Orders . | . . . . . . Ally Attacks . | . . . . . . Total Damage . | . . . . . . Kills . | . . . . . . Allies Corrupted . | . . . . . . Allies Melted . | . . . . . . Intel | -11 -10 -10 -7 -5 -5 ------- Run | Yrd Mat Sub Rec Fac Ext Active Infowar (turns) 231 | . . . . 138 93 Jamming 231 | . . . . 138 93 Robot Analysis Total . | . . . . . . Derelict Logs Recovered . | . . . . . . Drone Launches . | . . . . . . Drone Recoveries . | . . . . . . Exploration | -11 -10 -10 -7 -5 -5 ------------- Run | Yrd Mat Sub Rec Fac Ext Turns Passed 5267 | 71 819 2003 723 1511 140 Spaces Moved 2801 | 62 402 842 337 1071 87 Core 31 | 30 . . . 1 . Treads . | . . . . . . Legs 1876 | 32 402 842 337 182 81 Wheels . | . . . . . . Hover 888 | . . . . 882 6 Flight 6 | . . . . 6 . Fastest Speed 26 | 50 120 190 190 26 120 Average Speed 149 | 87 185 190 190 95 126 Slowest Speed 500 | 120 190 260 190 500 260 Overloaded Moves . | . . . . . . Propulsion Burnouts . | . . . . . . Robots Hopped . | . . . . . . Potential Cave-ins . | . . . . . . Cave-ins Triggered . | . . . . . . Exploration Rate (%) 36 | 4 50 32 81 28 25 Regions Visited 5 Branch Regions 3 Pre-discovered Areas 1 | . . 1 . . . Known Exits Taken . | . . . . . . Unknown Exits Taken 5 | 1 1 1 1 1 . Scrap Searched . | . . . . . . Spaces Dug 68 | . . . . 68 . Terrain Destroyed 170 | . . 13 5 146 6 Melee 5 | . . . . 5 . Projectile 24 | . . . 5 19 . AOE 141 | . . 13 . 122 6 Terrain Rammed . | . . . . . . Walls Destroyed . | . . . . . . Machines Disabled . | . . . . . . Actions | -11 -10 -10 -7 -5 -5 --------- Run | Yrd Mat Sub Rec Fac Ext Total 3589 | 74 446 1190 405 1366 108 Wait 404 | . 6 292 47 51 8 Move 2796 | 61 401 841 336 1070 87 Hop . | . . . . . . Pick Up 78 | 5 15 11 4 43 . Fast Attach 7 | 2 . . . 5 . Attach 57 | 4 1 . 3 44 5 Detach 12 | . . . . 12 . Swap 24 | . 8 8 1 7 . Drop 34 | . 1 11 3 19 . Fire 154 | 2 14 27 11 92 8 Melee 23 | . . . . 23 . Ram . | . . . . . . Kick . | . . . . . . Crush . | . . . . . . Escape Stasis . | . . . . . . Rewire . | . . . . . . Trap . | . . . . . . Miscellaneous . | . . . . . . Route ------- -11/Scrapyard -10/Materials (discovered 2 exits: [*Mat] / *Sub) -10/Subcaves -7/Recycling -5/Factory (discovered 3 exits: [*Fac] / [*Ext x2]) -5/Extension History --------- Turn | Location | Event 7 | -11/Scrapyard | Discovered new exit (range 16) 72 | -11/Scrapyard | Entered Materials 304 | -10/Materials | Build established: Mutant 642 | -10/Materials | Discovered new exit (range 14) 870 | -10/Materials | Discovered new exit (range 12) 891 | -10/Materials | Entered Subcaves 975 | -10/Subcaves | Ambushed by swarm of Subdwellers 976 | -10/Subcaves | Ambushed by Subdwellers from Twisted Machinery 976 | -10/Subcaves | Ambushed by Subdwellers from Twisted Machinery 978 | -10/Subcaves | Ambushed by Subdwellers from Twisted Machinery 1023 | -10/Subcaves | Destroyed 7 combat bots 1032 | -10/Subcaves | Lost 4 allies 1163 | -10/Subcaves | Visited Clippyterm 1169 | -10/Subcaves | Learned location of Extension (-5) 1169 | -10/Subcaves | Learned Factory stockpile data 1335 | -10/Subcaves | Build established: Scavenger-Mutant 1432 | -10/Subcaves | A swath of the cavern ceiling suddenly collapsed 2786 | -10/Subcaves | Shifting Twisted Machinery released Flamer 2845 | -10/Subcaves | Discovered new exit (range 9) 2894 | -10/Subcaves | Entered Recycling 2895 | -7/Recycling | Met a Zionite searching for Scraptown 3405 | -7/Recycling | Lost 3 parts (1u2w) 3598 | -7/Recycling | Discovered new exit (range 11) 3617 | -7/Recycling | Entered Factory 3617 | -5/Factory | Evolved 10 slots: Power x1, Propulsion x5, Utility x2, Weapon x2 3836 | -5/Factory | Discovered new exit (range 14) 3865 | -5/Factory | Identified exit to DSF 3984 | -5/Factory | Discovered new exit (range 16) 4281 | -5/Factory | Build established: Gunner 4645 | -5/Factory | Lost 4 parts (2n2u) 4812 | -5/Factory | Lost 12 parts (3p2n7w) 5112 | -5/Factory | Discovered new exit (range 12) 5128 | -5/Factory | Entered Extension 5217 | -5/Extension | Spotted B-75 Beast 5255 | -5/Extension | Core integrity fell below 50% 5263 | -5/Extension | Spotted B-75 Beast 5268 | -5/Extension | Self-destructed Last Messages --------------- ALERT: Construction progress impeded, dispatching reinforcements to local area. Imp. EM Pulse Cannon destroyed. K-01 Serf destroyed. Grenade Launcher destroyed. Knocked back. Acquired 4 matter. Carbon-fiber Leg destroyed. Knocked back. B-75 Beast IFF system glitched. Critical hit (Meltdown: +260). K-01 Serf destroyed. U-05 Engineer lays Concrete. Slug penetrates Wall. U-05 Engineer lays Concrete. Knocked back. Antigrav System destroyed. Penetrated by Slug. U-05 Engineer lays Concrete. [Achievement: 5k Club] Map ----- +----------------------------------------------------+ | ?????????????????????????????????????????????????? | | ?????????????????????????????????????????????????? | | ?????????????????????????????????????????????????? | | ?????????????????????????????????????????????????? | | ?????????????????????????????????????????????????? | | ?????????????????????????????????????????????????? | | ?????????????????????????????????????????????????? | | ?????????????????????????????????????????????????? | | ?????????????????????????????????????????????????? | | ?????????????????????????????????????????????????? | | ?????????????????????????????????????????????????? | | ?????????????????????????????????????????????????? | | ?????????????????????????????????????????????????? | | ??????????????????????????????#??????????????????? | | ????????????????????????????? #??????????????????? | | ????????????????????????????? #??##??#???????????? | | ???????????????????????????##R### ## ##??????????? | | ???????????????????????????"" "" Y "??????????? | | ??????????????????????????? " "Y "?????????? | | ??????????????????????????? ?????????? | | ???????????????######?????? ?????????? | | ################;##=####### ????????? | | % =%* u ????????? | | % % ! u ???????? | | % %= ???????? | | % @ BB !*= ???????? | | k %A %R BB u! =%= ???????? | | ############"#######;####% % = BB ???????? | | ???????????????????###?? BB %????????? | | ???????????????????????#### ????????? | | ??????????????????????????? ?????????? | | ??????????????????????????? ?????????? | | ???????????????????????????#####T#"""###?????????? | | ?????????????????????????????????#???????????????? | | ?????????????????????????????????????????????????? | | | | | | | | | | | | | | | | | | | | | | | | | | | | | | | +----------------------------------------------------+ Best States ------------- Heat Dissipation 67 Coolant Potential 80 Energy Generation 33 Energy Capacity 530 Matter Stores 300 Matter Capacity 300 Sight Range 16 Terrain Scan Density 10 Jamming Range 14 Armor Coverage 800 Resistance: KI 20 Resistance: TH 20 Resistance: EX 20 Resistance: EM 20 Resistance: I 20 Resistance: S 20 Resistance: P 20 Phase Shifting 5 Evasion (%) 64 Targeting Accuracy 5 Offensive Hacking 10 Item Schematics ----------------- None Robot Schematics ------------------ None Fabricated ------------ Nothing Repaired ---------- Nothing Alien Tech Used ----------------- None Achievements -------------- 5k Club Hey, That's Mine! Power Corrupts Quick And Dirty Risk Taker Total Silence Tourist Challenges ------------ None Game ------ Seed CobblerPortableSink Manual? 0 Play Time 00:59:40 Cumulative 1.3 hours Start 2025.06.25 @ 20:28:42 End 2025.06.25 @ 21:29:02 Sessions 1 Manual Loads 0 Difficulty Adventurer Special Mode None Game No. 3 Rogue 0 Adventurer 3 Explorer 0 Win Type - Total 0 Types 0/0/0/0/0/0/0/0/0/0 Lore% 0 Gallery% 7 Achievement% 8 Wizard Run 0 Options --------- Layout 1 ASCII 0 Keyboard 0 Movement Mouse Keybinds 0 Fullscreen 2 Font 32/SmallcapsGlow Map View 50x35 Zoom Use 0% Tactical HUD 0 Map Filters NONE Filters NONE Steam 1 RUN: b019425e-d48e-4a1f-a526-79375f139413